Workbook

Sheet 表17-採購評選專家學者資料庫性別比例
A1: 各機關採購評選委員會專家學者參考名單資料庫性別比例
A2: 表17
A3: 年別 | B3: 總計 | D3: 男 | I3: 女
B4: 人數 | C4: 比例 | D4: 人數 | H4: 比例 | I4: 人數 | M4: 比例
A5: 99年 | B5: =D5+I5 -> 4,517 | C5: =H5+M5 -> 100% | D5: 3813 | H5: =D5/B5 -> 84.41% | I5: 704 | M5: =I5/B5 -> 15.59%
A6: 100年 | B6: 5,018 | C6: =H6+M6 -> 100% | D6: 4251 | H6: 84.72% | I6: 767 | M6: 15.28%
A7: 101年 | B7: 4,723 | C7: 100% | D7: 4001 | H7: 84.71% | I7: 722 | M7: 15.29%
A8: 102年 | B8: 4,977 | C8: 100% | D8: 4197 | H8: 84.33% | I8: 780 | M8: 15.67%
A9: 103年 | B9: 5,262 | C9: 100% | D9: 4406 | H9: 83.73% | I9: 856 | M9: 16.27%
A10: 104年 | B10: 5,261 | C10: 100% | D10: 4405 | H10: 83.73% | I10: 856 | M10: 16.27%
A11: 105年 | B11: 5,310 | C11: 100% | D11: 4439 | H11: 83.60% | I11: 871 | M11: 16.40%
A12: 106年 | B12: 5,433 | C12: =H12+M12 -> 100% | D12: 4525 | H12: 83.29% | I12: 908 | M12: 16.71%
A13: 107年 | B13: 5,699 | C13: =H13+M13 -> 100% | D13: 4704 | H13: 82.54% | I13: 995 | M13: 17.46%
A14: 108年 | B14: 4,086 | C14: =H14+M14 -> 100% | D14: 3402 | H14: 83.26% | I14: 684 | M14: 16.74%
A15: 109年 | B15: 2,936 | C15: 100% | D15: 業界專家 | F15: 學者 | I15: 業界專家 | K15: 學者
D16: 1,330 | E16: =D16/(D16+I16) -> 89.68% | F16: 1,119 | G16: =F16/(F16+K16) -> 77.01% | H16: =(D16+F16)/B15 -> 83.41% | I16: 153 | J16: =I16/(D16+I16) -> 10.32% | K16: 334 | L16: =K16/(F16+K16) -> 22.99% | M16: =(I16+K16)/B15 -> 16.59%
A17: 110年 | B17: =D18+F18+I18+K18 -> 3,807 | C17: 100% | D17: 業界專家 | F17: 學者 | I17: 業界專家 | K17: 學者
D18: 1,697 | E18: =D18/(D18+I18) -> 88.89% | F18: 1,479 | G18: =F18/(F18+K18) -> 77.92% | H18: =(D18+F18)/B17 -> 83.43% | I18: 212 | J18: =I18/(D18+I18) -> 11.11% | K18: 419 | L18: =K18/(F18+K18) -> 22.08% | M18: =(I18+K18)/B17 -> 16.57%
A19: 111年 | B19: 4,104 | C19: 100% | D19: 業界專家 | F19: 學者 | I19: 業界專家 | K19: 學者
D20: 1,822 | E20: =D20/(D20+I20) -> 87.85% | F20: 1,578 | G20: =F20/(F20+K20) -> 77.73% | H20: =(D20+F20)/B19 -> 82.85% | I20: 252 | J20: =I20/(D20+I20) -> 12.15% | K20: 452 | L20: =K20/(F20+K20) -> 22.27% | M20: =(I20+K20)/B19 -> 17.15%
A21: 112年 | B21: 4,222 | C21: 100% | D21: 業界專家 | F21: 學者 | I21: 業界專家 | K21: 學者
D22: 1,972 | E22: =D22/(D22+I22) -> 87.61% | F22: 1,523 | G22: =F22/(F22+K22) -> 77.27% | H22: =(D22+F22)/B21 -> 82.78% | I22: 279 | J22: =I22/(D22+I22) -> 12.39% | K22: 448 | L22: =K22/(F22+K22) -> 22.73% | M22: =(I22+K22)/B21 -> 17.22%
A23: 113年 | B23: 4,339 | C23: 100% | D23: 業界專家 | F23: 學者 | I23: 業界專家 | K23: 學者
D24: 2,049 | E24: =D24/(D24+I24) -> 87.01% | F24: 1,540 | G24: =F24/(F24+K24) -> 77.62% | H24: =(D24+F24)/B23 -> 82.71% | I24: 306 | J24: =I24/(D24+I24) -> 12.99% | K24: 444 | L24: =K24/(F24+K24) -> 22.38% | M24: =(I24+K24)/B23 -> 17.29%
A26: 資料來源：企劃處
A27: 備註： 1.性別資料使用：機關辦理採購採最有利標決標時，依政府採購法規定須成立至少5人以上之採購評選委員會，其中專家學者人數至少達三分之一。本資料庫係供機關遴聘專家學者委員之參考，資料庫除提供專家學者之學經歷等資訊以外，並含性別資料，供機關依個案特性及實際需要於遴聘委員時融入性別意識。 2.應用深化：依本會「各機關採購評選委員會專家學者參考名單資料庫」截至113年12月31日止之資料，如以類科別統計，其中計有37個科別之女性比例多於男性(包括餐飲管理、社會福利、營養學、會計、新聞及教育心理與輔導等)，14個科別男女比例各為50%。至於男性比例較高之類科別多為工學類、理學類，其差異除涉及個人所學不同外，亦可能因專家學者性向、興趣及意願而有不同。為提升女性專家學者改善評選環境，本會持續函請機關踴躍推薦品德操守佳之女性人選。 3.自109年起就資料庫中屬業界專家及學者之男女性別進行複分類統計，113年其中屬業界專家之男、女性別比例分別為87.01%及12.99%；屬學者之男、女性別比例分別為77.62%及22.38%，顯示業界專家之性別差異情形較為明顯。 4.未進行國際性別統計比較原因說明：各國未必有建置此資料庫，爰未與國際性別統計比較。
